Cogmind - Beta 15 @@@ ROGUE MODE // 2025.07.27 @ 12:58:49 Player: StaticNoob Result: Destroyed by VF-BF1(R) with Subdweller Machine Gun Performance ------------- Evolutions (0) 0 Regions Visited (2) 400 Robots Destroyed (28) 140 Value Destroyed (560) 560 Prototype IDs (3) 60 Alien Tech Used (0) 0 Bonus (0) 0 TOTAL SCORE: 1160 Bonus ------- None Cogmind --------- Core Integrity 0/250 Matter 162/300 Energy 265/265 System Corruption 0% Temperature Cool (0) Movement Treading (160) Location -10/Subcaves Parts ------- > --- POWER (1) -------- Improved Ion Engine > --- PROPULSION (2) --- Light Treads Light Treads > --- UTILITY (2) ------ Large Storage Unit Structural Scanner > --- WEAPON (2) ------- Assault Rifle Light Assault Rifle > --- INVENTORY (15) --- Improved Ion Engine Light Treads Light Treads Improved Heat Sink Large Storage Unit Large Storage Unit High-capacity Storage Unit Huge Storage Unit High-capacity Matter Pod (0) Light EM Pulse Cannon Light EM Pulse Cannon Assault Rifle Assault Rifle Rocket Launcher Rocket Launcher Peak State ------------ > --- POWER ------------ Improved Ion Engine > --- PROPULSION ------- Light Treads Light Treads > --- UTILITY ---------- Improved Heat Sink Large Storage Unit > --- WEAPON ----------- Light Assault Rifle Rocket Launcher > --- INVENTORY -------- Improved Ion Engine Large Storage Unit High-capacity Storage Unit Huge Storage Unit High-capacity Matter Pod Light EM Pulse Cannon Light EM Pulse Cannon Assault Rifle Assault Rifle Assault Rifle Rocket Launcher [Rating: 12] Favorites ----------- Power Improved Ion Engine Engine Improved Ion Engine Propulsion Light Treads Treads Light Treads Utility Large Storage Unit Device Improved Heat Sink Storage Large Storage Unit Weapon Light Assault Rifle Energy Gun Small Laser Ballistic Gun Light Assault Rifle Launcher Rocket Launcher Build | -11 -10 -10 ------- Run | Yrd Mat Sub Slots Evolved . | . . . Power . | . . . Propulsion . | . . . Utility . | . . . Weapon . | . . . Parts Attached 21 | 6 15 . Power 2 | 1 1 . Engine 2 | 1 1 . Core . | . . . Reactor . | . . . Propulsion 4 | 2 2 . Treads 4 | 2 2 . Leg . | . . . Wheel . | . . . Hover . | . . . Flight . | . . . Utility 9 | 1 8 . Device 4 | . 4 . Storage 5 | 1 4 . Processor . | . . . Hackware . | . . . Protection . | . . . Artifact . | . . . Weapon 6 | 2 4 . Energy Gun 1 | 1 . . Energy Cannon . | . . . Ballistic Gun 3 | 1 2 . Ballistic Cannon . | . . . Launcher 2 | . 2 . Special Weapon . | . . . Impact Weapon . | . . . Slashing Weapon . | . . . Piercing Weapon . | . . . Special Melee Weapon . | . . . Unidentified Prototypes . | . . . Parts Lost 2 | . 2 . Power . | . . . Propulsion . | . . . Utility 1 | . 1 . Weapon 1 | . 1 . Highest Loss Streak 1 | . 1 . To Critical Strikes . | . . . Average Backups 10 | . 10 15 Power . | . . 1 Propulsion . | . . 2 Utility 3 | . 3 6 Weapon 5 | . 5 6 Tool/Special . | . . . Unused Backups 8 | . 1 7 Power 2 | . 1 1 Propulsion . | . . . Utility 2 | . . 2 Weapon 4 | . . 4 Tool/Special . | . . . Average Slot Usage (%) 98 | . 98 100 Engine 14 | . 14 14 Treads 28 | . 28 28 Device 12 | . 12 14 Storage 14 | . 14 14 Ballistic Gun 27 | . 27 28 Peak Build Rating 12 | 6 12 10 Average Rating 9 | 4 9 10 On Entrance 5 | . 6 10 Naked Turns . | . . . Heaviest Build 33 | 10 33 31 Greatest Support 40 | 40 40 40 Greatest Overweight (x) . | . . . Average Overweight (x) . | . . . Largest Inventory Capacity 25 | 8 25 15 Average Capacity 13 | 6 13 15 Most Carried 15 | . 15 15 Average Carried 10 | . 10 15 Final Capacity 15 | 8 15 15 Final Carried 15 | . 15 15 Class Distribution -------------------- 100% | Mutant Dominant Class ---------------- Mutant | -10/Materials Mutant | -10/Subcaves Resources | -11 -10 -10 ----------- Run | Yrd Mat Sub Matter Collected 727 | 213 514 . Remotely . | . . . Salvage Created 667 | 27 608 32 Parts 49 | 1 44 4 Haulers Intercepted 1 | . 1 . Recyclers Shooed 2 | . 2 . Parts Field Recycled . | . . . Retrieved Matter . | . . . Parts Self-Destructed . | . . . Prevented . | . . . Kills | -11 -10 -10 ------- Run | Yrd Mat Sub Combat Hostiles Destroyed 19 | . 18 1 Guns 13 | . 12 1 AOE 6 | . 6 . Classes Destroyed 8 | 1 6 1 Builder 1 | . 1 . Tunneler 2 | 1 1 . Hauler 1 | . 1 . Recycler 2 | . 2 . Watcher 3 | . 3 . Swarmer 9 | . 9 . Grunt 9 | . 9 . Subdweller 1 | . . 1 Best Kill Streak 4 | 1 4 1 Combat Bots Only 3 | . 3 1 Max Kills in Single Turn 3 | 1 3 1 Gunslinging 1 | . 1 . Exploded 2 | . 2 . Melee . | . . . Uniques/NPCs Destroyed . | . . . Combat | -11 -10 -10 -------- Run | Yrd Mat Sub Hostile Shots Fired 102 | . 90 12 Missed 33 | . 29 4 Hits 69 | . 61 8 Projectile 69 | . 61 8 Critical Strikes 1 | . 1 . Damage Taken 902 | . 724 178 Core 250 | . 159 91 Absorbed by Shields . | . . . Core Remaining (%) 100 | 100 . . Volleys Fired 113 | 2 105 6 Largest 2 | 2 2 2 Hottest 60 | 60 40 40 Shots Fired 213 | 4 197 12 Gun 200 | 4 184 12 Cannon . | . . . Launcher 13 | . 13 . Special . | . . . Kinetic 198 | 2 184 12 Thermal 2 | 2 . . Explosive 13 | . 13 . Electromagnetic . | . . . Robot Hit Streak 17 | 2 8 17 Robot Miss Streak 6 | 1 6 . Penetration Max . | . . . Secondary Targets 2 | . 1 1 Max Gunslinging Chain 1 | . 1 1 Shots Hit Robots 110 | 2 96 12 Core Hits 52 | 1 48 3 Critical Kills . | . . . Critical Parts Destroyed . | . . . Critical Strikes . | . . . Melee Attacks . | . . . Impact . | . . . Slashing . | . . . Piercing . | . . . Sneak Attacks . | . . . Combat Hostiles . | . . . Follow-up Attacks . | . . . Damage Inflicted 1997 | 21 1913 63 Guns 942 | 21 858 63 Cannons . | . . . Explosions 1033 | . 1033 . Melee . | . . . Ramming 22 | . 22 . Kinetic 931 | 10 858 63 Thermal 571 | 11 560 . Explosive 473 | . 473 . Electromagnetic . | . . . Impact . | . . . Slashing . | . . . Piercing . | . . . Highest Corruption . | . . . Average Corruption . | . . . Corruption Purged . | . . . Corruption Blocked . | . . . Overload Shots . | . . . Overflow Damage 105 | . 105 . Projectiles . | . . . Explosions 105 | . 105 . Melee . | . . . Knockbacks . | . . . Impact . | . . . Kinetic . | . . . Secondary . | . . . Self-Inflicted Damage 95 | . 95 . Shots 3 | . 3 . Rammed 5 | . 5 . Targets Rammed 5 | . 5 . Kicked . | . . . Crushed . | . . . Highest Temperature 20 | 20 13 . Average Temperature 4 | 12 3 . Received Heat Transfer 195 | . 183 12 Siege Activations . | . . . Martial Activations . | . . . Shielding Activations . | . . . Robots Disrupted . | . . . Combat Hostiles . | . . . Robots Corrupted . | . . . Combat Hostiles . | . . . Parts Fried . | . . . Impact Corruptions . | . . . Robots Melted . | . . . Combat Hostiles . | . . . Parts Melted . | . . . Heat Transferred 375 | 25 350 . Parts Sabotaged . | . . . Parts Stolen . | . . . Parts Stripped . | . . . Power Chain Reactions . | . . . Alert | -11 -10 -10 ------- Run | Yrd Mat Sub Maximum Alert Level 1 | . 1 . Low Security (%) 72 | 100 71 . Level 1 27 | . 28 . Level 2 . | . . . Level 3 . | . . . Level 4 . | . . . Level 5 . | . . . High Security . | . . . Max Security . | . . . Peak Influence 234 | 5 234 . Initial . | . . . Average 136 | . 140 . Influence Increases 699 | 5 694 . Destroy 0b10 Robot/C 360 | . 360 . Destroy 0b10 Robot/NC 45 | 5 40 . Destroy Leader 88 | . 88 . Successful Hack 24 | . 24 . Disable Machine 45 | . 45 . Destroy Structure 92 | . 92 . Lose Combat Pursuer 45 | . 45 . Influence Decreases 645 | 5 531 109 Entered New Map 79 | . . 79 Time Decay 546 | 5 511 30 Lost Part 20 | . 20 . Squads Dispatched 4 | . 4 . Investigation 2 | . 2 . Extermination . | . . . Reinforcement 2 | . 2 . Assault . | . . . Garrison . | . . . Intercept . | . . . Searches Triggered . | . . . Construction Impeded . | . . . Haulers Reinforced . | . . . Active Scanning Responses . | . . . Cargo Convoy Interrupts . | . . . Stealth | -11 -10 -10 --------- Run | Yrd Mat Sub Distress Signals 2 | . 2 . Communications Jammed . | . . . Distress Signals . | . . . Times Spotted 39 | . 36 3 Peak Tracking Total 4 | . 4 3 Tactical Retreats 2 | . 2 . Traps | -11 -10 -10 ------- Run | Yrd Mat Sub Traps Triggered 3 | . 3 . Indirectly . | . . . Trap Hack Attempts . | . . . Triggered . | . . . Disarmed . | . . . Reprogrammed . | . . . Reused . | . . . Traps Extracted . | . . . Installed . | . . . Triggered . | . . . Machines | -11 -10 -10 ---------- Run | Yrd Mat Sub Machines Disabled 3 | . 3 . Max in Single Turn 2 | . 2 . Machines Repaired . | . . . Machines Dismantled . | . . . Machines Sabotaged . | . . . Overloaded Fab Kills . | . . . Hacking | -11 -10 -10 --------- Run | Yrd Mat Sub Machines Accessed 7 | . 7 . Terminals 6 | . 6 . Fabricators . | . . . Repair Stations . | . . . Recycling Units 1 | . 1 . Scanalyzers . | . . . Garrison Access . | . . . Total Hacks 21 | . 21 . Successful 12 | . 12 . Failed 9 | . 9 . Catastrophic . | . . . Database Lockouts . | . . . Manual 19 | . 19 . Terminals 20 | . 20 . Fabricators . | . . . Repair Stations . | . . . Recycling Units 1 | . 1 . Scanalyzers . | . . . Garrison Access . | . . . Terminal Hacks 4 | . 4 . Prototype ID Bank 2 | . 2 . Locate Traps 1 | . 1 . Zone Layout 1 | . 1 . Fabricator Hacks . | . . . Repair Station Hacks . | . . . Recycling Unit Hacks 1 | . 1 . Retrieve Components 1 | . 1 . Scanalyzer . | . . . Garrison Access Hacks . | . . . Unauthorized Hacks 7 | . 7 . Terminals 7 | . 7 . Botnet 1 | . 1 . Operators 1 | . 1 . Skim 5 | . 5 . Fabricators . | . . . Repair Stations . | . . . Recycling Units . | . . . Scanalyzers . | . . . Garrison Access . | . . . Data Cores Recovered . | . . . Used . | . . . Hacking Detections 6 | . 6 . Full Trace Events . | . . . Feedback Events . | . . . Feedback Blocked . | . . . Robot Schematics Acquired . | . . . Robots Built . | . . . Authchips . | . . . Time . | . . . Total Robot Build Rating . | . . . Part Schematics Acquired . | . . . Parts Built . | . . . Authchips . | . . . Time . | . . . Total Part Build Rating . | . . . Parts Repaired . | . . . Time . | . . . Parts Recycled . | . . . Recycled Matter . | . . . Retrieved Matter . | . . . Retrieved Components 9 | . 9 . Parts Scanalyzed . | . . . Part Schematics Acquired . | . . . Parts Damaged . | . . . Bothacking | -11 -10 -10 ------------ Run | Yrd Mat Sub Used RIF Installer . | . . . Robots Hacked . | . . . Non-combat . | . . . Combat . | . . . Robot Hacks Applied . | . . . Relay Couplers Released . | . . . Fabnet Peak Effective % . | . . . Robots Rewired . | . . . Allies Hacked . | . . . Hacks Repelled . | . . . Allies | -11 -10 -10 -------- Run | Yrd Mat Sub Total Allies . | . . . Largest Group . | . . . Highest-Rated Group . | . . . Highest-Rated Ally . | . . . Total Orders . | . . . Ally Attacks . | . . . Total Damage . | . . . Kills . | . . . Allies Corrupted . | . . . Allies Melted . | . . . Intel | -11 -10 -10 ------- Run | Yrd Mat Sub Active Infowar (turns) 1249 | . 1182 67 Structural 760 | . 693 67 Seismic 489 | . 489 . Robot Analysis Total . | . . . Derelict Logs Recovered . | . . . Drone Launches . | . . . Drone Recoveries . | . . . Exploration | -11 -10 -10 ------------- Run | Yrd Mat Sub Turns Passed 2606 | 67 2472 67 Spaces Moved 1314 | 36 1246 32 Core 4 | 4 . . Treads 1310 | 32 1246 32 Legs . | . . . Wheels . | . . . Hover . | . . . Flight . | . . . Fastest Speed 50 | 50 160 160 Average Speed 159 | 147 160 160 Slowest Speed 160 | 160 160 160 Overloaded Moves . | . . . Propulsion Burnouts . | . . . Robots Hopped . | . . . Potential Cave-ins . | . . . Cave-ins Triggered . | . . . Exploration Rate (%) 37 | 4 100 7 Regions Visited 2 Branch Regions 1 Pre-discovered Areas 1 | . 1 . Known Exits Taken . | . . . Unknown Exits Taken 2 | 1 1 . Scrap Searched . | . . . Spaces Dug . | . . . Terrain Destroyed 115 | . 115 . Melee . | . . . Projectile . | . . . AOE 115 | . 115 . Terrain Rammed . | . . . Walls Destroyed . | . . . Machines Disabled . | . . . Actions | -11 -10 -10 --------- Run | Yrd Mat Sub Total 1630 | 43 1549 38 Wait 157 | . 157 . Move 1312 | 35 1245 32 Hop . | . . . Pick Up 12 | . 12 . Fast Attach 11 | 6 5 . Attach 1 | . 1 . Detach 1 | . 1 . Swap 13 | . 13 . Drop 5 | . 5 . Fire 113 | 2 105 6 Melee . | . . . Ram . | . . . Kick . | . . . Crush 5 | . 5 . Escape Stasis . | . . . Rewire . | . . . Trap . | . . . Miscellaneous . | . . . Route ------- -11/Scrapyard -10/Materials (discovered 6 exits: [*Mat x3] / [*Min x2] / [*Sub]) -10/Subcaves (discovered 3 exits: Mat x2 / Rec) History --------- Turn | Location | Event 8 | -11/Scrapyard | Discovered new exit (range 15) 68 | -11/Scrapyard | Entered Materials 181 | -10/Materials | Discovered new exit (range 14) 321 | -10/Materials | Build established: Mutant 428 | -10/Materials | Discovered new exit (range 16) 596 | -10/Materials | Discovered new exit (range 8) 694 | -10/Materials | Discovered new exit (range 12) 883 | -10/Materials | Discovered new exit (range 10) 1231 | -10/Materials | Core integrity fell below 50% 2073 | -10/Materials | Discovered new exit (range 9) 2375 | -10/Materials | Learned location of 1 exit from Storage 2420 | -10/Materials | Learned location of 1 exit from Storage 2455 | -10/Materials | Learned Storage emergency access door positions 2482 | -10/Materials | Learned location of 2 exits from Subcaves 2502 | -10/Materials | Learned location of 2 exits from Subcaves 2514 | -10/Materials | Learned Storage emergency access door positions 2540 | -10/Materials | Entered Subcaves 2541 | -10/Subcaves | Approached by a straggling Scientist 2541 | -10/Subcaves | Identified exit to Materials 2542 | -10/Subcaves | Identified exit to Recycling 2604 | -10/Subcaves | Disturbed a concealed Subdweller 2606 | -10/Subcaves | Core integrity fell below 20% 2607 | -10/Subcaves | Destroyed by VF-BF1(R) with Subdweller Machine Gun Last Messages --------------- GOAL=ESCAPE 02541_ RH-29F(c): "Thank the algorithms! I was beginning to lose hope I'd never make it past all the Subs lurking out here." Loading 2 Materials entrances... Loading 1 Subcaves exit... 02544_ RH-29F(c): "Hey, let me tag along and I can get us both out of this nasty situation. At least I think I can... The group I got separated from was talking about a shortcut back to the UFD." RH-29F(c): "I think it's somewhere north of here" 02597_ RH-29F(c) destroyed. 02604_ VF-BF1(R) angrily emerges from the Twisted Machinery. 02606_ Subatomizers dissect the Machine Analyzer. 02606_ 58-X02(R) destroyed. 02606_ Switching to secondary target: VF-BF1(R). Map ----- +----------------------------------------------------+ | ????????????????????????????????????????????? | | ????????????????????????????????????????????? | | ????????????????????????????????????????????? | | ????????????????????????????????????????????? | | ????????????????????????????????????????????? | | ????????????????????????????????????????????? | | ????????????????????????????????????????????? | | ????????????????????????????????????????????? | | ????????????????????????????????????????????? | | ????????????????????????????????????????????? | | ????????????????????????????????????????????? | | ????????????????????????????????????????????? | | ???????????????????? ???????????????????????? | | ???????????????????? ???????????????????????? | | ????????????????"""""???????????????????????? | | ???????????????# #"" ?"?????????????????????? | | ??????????????####"" ? "????????????????????? | | ??????????????### ? "#??????####?????????? | | ??????????????##R ? ##?????? ####????????? | | ???????????????? ##?????? ### ???????? | | ???????????????## ## ##?????? ## ?????? | | ??????????######## ##&##?????? ?????? | | ??????????####### ##%##?????? #?????? | | ??????????## $## &[##?????? ######?? | | ??????????##$&<##< &##??#### ######?? | | ??????????### R @ ##?##### #?? | | ??????????## #$# ###### ???? | | ??????????## ### % ##### ????? | | ?????????????### ! #### ????? | | ?????????????### ## ##??????? | | ?????????????## #####??????? | | ?????????????## ## ######??????? | | ?????????????### ### ## ########## | | ?????????????#### #### ## ######### | | ??????????????### ##### # | | ???????????????### ##### # | | ???????????????######### | | ????????????????###### ##### # | | ???????????????????## #### #### | | ???????????????????## #### ##### | | ???????????????????### ## ###?? | | ???????????????????### # ##### | | ????????????????????## ## ##### | | ????????????????????## ##### ### # | | ????????????????????## ####### ### | | ????????????????????######??##### ### | | ????????????????????#### ???? ### ## # # | | ????????????????????????????????? ####### | | ????????????????????????????????? ####### | | ????????????????????????????????? ??????# | +----------------------------------------------------+ Best States ------------- Heat Dissipation 39 Energy Generation 12 Energy Capacity 265 Matter Stores 290 Matter Capacity 300 Sight Range 16 Terrain Scan Density 10 Evasion (%) 40 Recoil Reduction 2 Item Schematics ----------------- None Robot Schematics ------------------ None Fabricated ------------ Nothing Repaired ---------- Nothing Alien Tech Used ----------------- None Achievements -------------- None Challenges ------------ None Game ------ Seed WarpSchematicFocus Manual? 0 Play Time 00:13:21 Cumulative 150.4 hours Start 2025.07.27 @ 12:45:57 End 2025.07.27 @ 12:58:49 Sessions 1 Manual Loads 0 Difficulty Rogue Special Mode None Game No. 134 Rogue 134 Adventurer 0 Explorer 0 Win Type - Total 3 Types 2/0/1/0/0/0/0/0/0/0 Lore% 72 Gallery% 65 Achievement% 58 Wizard Run 0 Options --------- Layout 1 ASCII 0 Keyboard 0 Movement Mouse Keybinds 0 Fullscreen 1 Font 24/Smallcaps Map View 50x35 Zoom Use 0% Tactical HUD 1 Map Filters NONE Filters NONE Steam 1 RUN: 449fed91-fa61-4bf3-830e-2d6660e44ba5